bitfinex-derivatives/quotes_ETHF0:USTF0_20260208
["timestamp","ask_amount","ask_price","bid_price","bid_amount"]
[1770544210597,10.02339865,2101.0,2100.1,10.04183031]
[1770544211093,10.02339865,2100.9,2100.1,0.00449649]
[1770544211991,10.02339865,2100.8,2099.7,10.03733382]
[1770544212197,10.26163865,2100.8,2099.7,10.03733382]
[1770544216098,10.18144681,2100.7,2099.5,10.4270962]
[1770544216296,10.18144681,2100.6,2099.5,10.4270962]
[1770544217701,10.18144681,2100.6,2099.4,10.4270962]
[1770544217899,12.12840644,2100.4,2099.3,27.317]
[1770544218105,12.12840644,2100.4,2099.2,10.4270962]
[1770544218399,10.18144681,2100.4,2099.2,10.4270962]
[1770544220099,10.18144681,2100.3,2099.2,10.4270962]
[1770544220304,10.18144681,2100.3,2099.4,10.4270962]
[1770544221205,10.18144681,2100.8,2099.8,10.4270962]
[1770544221803,10.18144681,2100.8,2099.8,13.27290461]
[1770544222007,10.18144681,2100.8,2099.9,10.4270962]
[1770544224503,10.18466358,2101.1,2100.0,10.4270962]
[1770544224704,10.18466358,2101.1,2100.1,10.4270962]
[1770544225211,10.18466358,2101.1,2100.3,10.4270962]
[1770544225212,0.00321677,2101.1,2100.3,10.4270962]
[1770544225913,0.00321677,2101.1,2100.4,10.4270962]
[1770544226107,10.18144681,2101.4,2100.7,10.4270962]
[1770544227112,10.18144681,2101.6,2100.7,10.4270962]
[1770544227310,10.18144681,2101.3,2100.7,10.43031298]
[1770544227505,10.18144681,2101.3,2100.7,0.00321678]
[1770544227811,0.00394436,2101.4,2100.7,10.43031298]
[1770544227812,10.18539117,2101.4,2100.7,10.43031298]
[1770544229311,10.18539117,2101.4,2100.7,0.00321678]
[1770544229509,10.18539117,2101.4,2100.2,10.4270962]
[1770544229510,12.1323508,2101.4,2100.2,10.4270962]
[1770544230509,12.1323508,2101.4,2099.7,2.84580841]
[1770544230510,10.18144681,2100.9,2099.7,2.84580841]
[1770544230705,10.18144681,2100.9,2099.6,10.4270962]
[1770544231104,10.41966681,2100.9,2099.6,10.4270962]
[1770544231309,10.18144681,2100.9,2099.6,10.4270962]
[1770544232416,10.18144681,2100.9,2099.4,10.4270962]
[1770544233713,10.18144681,2100.9,2099.5,10.4270962]
[1770544235020,10.41966681,2100.9,2099.5,10.4270962]
[1770544237520,9.17655951,2100.7,2099.5,10.4270962]
[1770544239420,9.17655951,2100.5,2099.3,9.32084518]
[1770544240816,9.17655951,2100.1,2099.1,9.32084518]
[1770544241525,9.17655951,2100.1,2098.9,9.32084518]
[1770544242014,9.41486951,2100.1,2098.9,9.32084518]
[1770544244808,9.17655951,2100.1,2098.9,9.32084518]
[1770544245815,9.17655951,2100.3,2098.9,9.32084518]
[1770544246011,9.17655951,2100.3,2099.0,9.32084518]
[1770544247609,9.17655951,2100.3,2099.1,9.32084518]
[1770544257331,9.17655951,2100.3,2099.2,9.32084518]
[1770544259338,9.17655951,2100.3,2099.3,9.32084518]
[1770544259533,9.17655951,2100.2,2099.3,9.32084518]
[1770544262236,9.17655951,2099.9,2099.0,9.32084518]
[1770544262435,9.17655951,2099.8,2098.8,12.16665359]
[1770544262831,9.17655951,2099.8,2098.9,9.32084518]
[1770544267546,9.17655951,2099.8,2098.5,9.68253941]
[1770544267547,9.65197725,2099.3,2098.5,9.68253941]
[1770544269945,9.65197725,2099.3,2098.3,9.68253941]
[1770544270144,9.65197725,2099.2,2098.1,12.52834782]
[1770544270340,9.65197725,2099.0,2098.1,9.68253941]
[1770544270544,9.65197725,2098.3,2097.2,9.68253941]
[1770544270844,2.81394614,2098.3,2097.0,9.68253941]
[1770544271048,9.65635716,2098.3,2097.4,9.68253941]
[1770544271350,0.00437991,2098.3,2097.5,9.68253941]
[1770544272054,9.65197725,2098.7,2097.6,9.68253941]
[1770544272447,9.65197725,2098.7,2097.5,2.85011341]
[1770544272448,9.65197725,2098.7,2097.8,9.68253941]
[1770544273142,9.65692681,2098.7,2097.8,9.68691932]
[1770544274050,9.65692681,2098.7,2097.8,0.00437991]
[1770544274754,9.65692681,2098.7,2097.8,8.85072437]
[1770544276854,9.65692681,2098.7,2097.8,0.00437991]
[1770544279555,9.65692681,2098.7,2097.8,8.85072437]
[1770544279947,9.65692681,2098.7,2097.8,0.00437991]
[1770544280451,8.93776856,2098.3,2097.0,8.84634446]
[1770544286662,8.93776856,2098.3,2097.0,9.08500446]
[1770544287062,8.94271812,2098.7,2097.6,8.84634446]
[1770544287363,0.00494956,2098.7,2097.6,9.08493446]
[1770544287851,0.00494956,2098.7,2097.8,8.84634446]
[1770544288157,8.94271812,2098.7,2098.0,8.84634446]
[1770544288759,0.00494956,2098.7,2098.0,8.84634446]
[1770544289254,8.94271812,2098.7,2098.0,8.84634446]
[1770544289454,0.00494956,2098.7,2098.0,8.84634446]
[1770544291667,8.94271812,2098.7,2098.0,8.84634446]
[1770544291965,8.94271812,2098.7,2097.8,8.84634446]
[1770544293066,8.94271812,2098.7,2097.4,2.85011341]
[1770544293067,8.94271812,2098.7,2097.4,8.84634446]
[1770544294270,9.18118812,2098.7,2097.2,8.84634446]
[1770544294458,8.93776856,2098.6,2097.2,8.84634446]
[1770544294665,9.17624856,2098.6,2097.2,8.84634446]
[1770544294863,8.93776856,2098.4,2097.2,8.84634446]
[1770544295768,9.17626856,2098.4,2097.0,8.84634446]
[1770544296362,8.76580338,2098.3,2097.0,8.84634446]
[1770544297270,8.76580338,2098.3,2097.1,8.82387317]
[1770544297464,9.00432338,2098.3,2097.1,8.82387317]
[1770544297860,8.76580338,2098.2,2097.1,8.82387317]
[1770544299469,8.76580338,2098.2,2097.2,8.82387317]
[1770544299673,8.76580338,2098.5,2097.4,8.82387317]
[1770544299974,8.77075294,2098.7,2097.6,8.82387317]
[1770544300270,8.77075294,2098.7,2097.7,8.82387317]
[1770544300766,8.77075294,2098.7,2097.8,8.82387317]
[1770544302565,0.00494956,2098.7,2097.9,8.82387317]
[1770544303067,0.00494956,2098.7,2098.0,8.82387317]
[1770544303469,8.77075294,2098.7,2098.0,8.82387317]
[1770544303871,0.00494956,2098.7,2098.0,8.82387317]
[1770544304267,8.77075294,2098.7,2098.0,8.82387317]
[1770544304869,8.77075294,2098.7,2097.8,8.82387317]
[1770544309684,8.77075294,2098.7,2097.6,8.82387317]
[1770544310584,9.00922294,2098.7,2097.6,8.82387317]
[1770544311380,8.76580338,2098.6,2097.6,8.82387317]
[1770544314484,8.76580338,2098.4,2097.4,8.82387317]
[1770544315585,8.76580338,2098.4,2097.5,8.82387317]
[1770544319778,11.56445139,2098.4,2097.5,8.82387317]
[1770544319979,8.76580338,2098.3,2097.5,8.82387317]
[1770544320987,8.77075294,2098.7,2097.7,8.82387317]
[1770544321378,8.77075294,2098.7,2097.8,8.82387317]
[1770544322782,9.00923294,2098.7,2097.6,7.11904679]
[1770544322988,8.76580338,2098.5,2097.5,8.82387317]
[1770544323185,8.76580338,2098.4,2097.5,8.82387317]
[1770544324689,8.76580338,2098.6,2097.6,8.82387317]
[1770544327489,8.76580338,2098.6,2097.7,8.85992367]
[1770544333195,11.56445139,2098.6,2097.7,8.85992367]
[1770544333496,8.59740589,2098.5,2097.7,8.85992367]
[1770544334391,8.59740589,2098.5,2097.8,8.53509928]
[1770544339688,0.00494956,2098.7,2098.1,8.53509928]
[1770544339894,10.37450097,2099.3,2098.5,8.53509928]
[1770544340095,10.37450097,2099.6,2098.6,8.53509928]
[1770544340294,1.1823453,2099.4,2098.7,8.53509928]
[1770544340490,10.37450097,2099.4,2098.7,8.53509928]
[1770544340895,10.37794719,2099.4,2098.7,8.54004884]
[1770544341095,10.37450097,2099.3,2098.5,8.53509928]
[1770544341293,0.00344622,2099.4,2098.5,8.53509928]
[1770544341496,9.19560189,2099.4,2098.5,8.53509928]
[1770544341896,9.19560189,2099.4,2098.6,8.53509928]
[1770544343501,9.19560189,2099.4,2098.5,8.53509928]
[1770544354908,0.00344622,2099.4,2098.5,8.53509928]
[1770544355109,0.00344622,2099.4,2098.5,11.37777166]
[1770544355410,9.19560189,2099.4,2098.6,8.53509928]
[1770544356906,0.00344622,2099.4,2098.6,8.53509928]
[1770544357411,8.65709221,2099.4,2098.6,8.53509928]
[1770544361414,8.65709221,2099.4,2098.6,9.71633385]
[1770544362512,0.00344622,2099.4,2098.6,9.71633385]
[1770544363015,8.65709221,2099.4,2098.6,9.71633385]
[1770544363916,8.65364599,2100.2,2099.3,9.01012162]
[1770544364117,8.65364599,2100.2,2099.6,9.01012162]
[1770544364419,8.65364599,2100.2,2099.3,10.19135619]
[1770544364714,8.65364599,2100.5,2099.6,9.01012162]
[1770544364915,8.65784925,2100.5,2099.6,9.01356784]
[1770544366420,8.65784925,2100.5,2099.8,11.852794]
[1770544366421,0.00420326,2100.5,2099.8,11.852794]
[1770544366607,8.65364599,2100.9,2100.0,9.01012162]
[1770544366809,8.65364599,2100.9,2100.1,9.01012162]
[1770544367817,8.65729998,2100.9,2100.1,9.01012162]
[1770544368911,8.65729998,2100.9,2099.9,9.01012162]
[1770544380622,0.00365399,2100.9,2099.9,9.01012162]
[1770544380825,0.00365399,2100.9,2100.1,9.01012162]
[1770544381923,8.65729998,2100.9,2100.1,9.01012162]
[1770544382320,0.00365399,2100.9,2100.1,9.01012162]
[1770544383628,0.00365399,2100.9,2100.2,9.01012162]
[1770544384322,0.00365399,2100.9,2100.1,2.84267238]
[1770544384323,8.65729998,2100.9,2100.1,9.01012162]
[1770544384525,8.65729998,2100.9,2099.8,9.01012162]
[1770544390534,8.65729998,2100.9,2100.0,8.27695877]
[1770544392332,8.65729998,2100.9,2100.1,8.27695877]
[1770544393344,8.65729998,2100.9,2100.2,8.37256821]
[1770544394444,8.65729998,2100.9,2100.2,11.21815223]
[1770544394645,8.65729998,2100.9,2100.3,8.37256821]
[1770544396439,8.65729998,2100.9,2100.2,2.84558402]
[1770544397544,8.65729998,2100.9,2100.3,8.37256821]
[1770544397739,8.65729998,2100.9,2100.2,2.84558402]
[1770544397936,8.65729998,2100.9,2100.0,11.21815223]
[1770544398139,8.65729998,2100.9,2100.1,8.37256821]
[1770544398837,8.65729998,2100.9,2100.0,2.84558402]
[1770544400549,8.65729998,2100.9,2100.0,11.21815223]
[1770544403344,8.65729998,2100.9,2100.1,8.37256821]
[1770544404550,8.65729998,2100.9,2100.0,11.21815223]
[1770544404747,8.65729998,2100.9,2100.1,8.37256821]
[1770544405638,8.89552998,2100.9,2100.0,2.84558402]
[1770544405846,8.91897011,2100.6,2099.6,8.37601443]
[1770544414649,8.91897011,2100.4,2099.6,8.37601443]
[1770544415755,8.91897011,2100.4,2099.4,8.37256821]
[1770544416654,8.91897011,2100.4,2099.4,8.37677147]
[1770544422358,8.0608463,2100.2,2099.2,12.78238018]
[1770544422559,8.0608463,2100.2,2099.2,8.50600577]
[1770544423152,8.0608463,2099.9,2099.2,8.50600577]
[1770544423557,8.0608463,2099.9,2099.1,8.50600577]
[1770544424257,8.0608463,2099.9,2098.9,8.50600577]
[1770544426553,8.2991763,2099.9,2098.9,8.50600577]
[1770544429458,8.0608463,2099.9,2098.9,8.50600577]
[1770544431452,8.0608463,2100.1,2098.9,8.50600577]
[1770544431651,8.0608463,2100.1,2099.0,8.50600577]
[1770544431853,8.0608463,2100.1,2099.2,8.50600577]
[1770544433658,8.0608463,2100.4,2099.2,8.50600577]
[1770544434162,8.0608463,2100.4,2099.3,8.50600577]
[1770544435262,8.0608463,2100.4,2099.4,8.50600577]
[1770544435453,8.0608463,2100.4,2099.4,9.68641481]
[1770544435855,10.85578899,2100.8,2099.8,8.50600577]
[1770544436060,8.06450029,2100.9,2100.1,8.50600577]
[1770544437464,8.0608463,2101.1,2100.6,8.50600577]
[1770544438063,8.0608463,2101.4,2100.6,8.50600577]
[1770544438563,8.06527804,2101.4,2100.6,8.50965976]
[1770544438957,8.06527804,2101.4,2100.8,8.50600577]
[1770544441662,8.0608463,2101.2,2100.1,8.50600577]
[1770544448074,8.33860607,2100.9,2099.8,8.08698012]
[1770544450576,8.33860607,2101.3,2100.0,8.08698012]
[1770544455173,8.33860607,2101.3,2100.0,8.32530012]
[1770544455373,8.33860607,2101.3,2100.1,7.99458794]
[1770544455577,8.33860607,2101.3,2100.1,8.23288794]
[1770544456575,8.33860607,2101.3,2099.9,7.99458794]
[1770544456576,8.19115718,2101.0,2099.9,7.99458794]
[1770544456771,8.42937718,2101.0,2099.9,7.99458794]
[1770544457467,8.42937718,2101.0,2099.5,7.99458794]
[1770544457468,8.19115718,2100.6,2099.5,7.99458794]
[1770544458780,8.42941718,2100.6,2099.2,7.99458794]
[1770544467773,8.19115718,2100.6,2099.2,7.99458794]
[1770544468078,8.19115718,2100.6,2099.5,7.99458794]
[1770544469285,8.19115718,2100.6,2099.6,7.99458794]
[1770544471274,8.19115718,2100.6,2099.7,7.99458794]
[1770544473284,8.19115718,2100.6,2099.8,7.99458794]
[1770544475185,8.19115718,2101.0,2099.8,7.99458794]
[1770544476584,8.19115718,2101.0,2099.8,10.83773214]
[1770544476784,8.19115718,2101.0,2100.1,8.6155426]
[1770544476981,8.39960377,2101.2,2100.2,8.6155426]
[1770544477180,8.39960377,2101.2,2100.3,8.6155426]
[1770544477590,8.39960377,2101.2,2100.2,8.6155426]
[1770544481590,8.39960377,2101.2,2100.3,8.6155426]
[1770544482790,8.40403551,2101.4,2100.3,8.6155426]
[1770544483892,8.40403551,2101.4,2100.5,8.6155426]
[1770544484094,8.40403551,2101.4,2100.6,8.6155426]
[1770544485894,0.00443174,2101.4,2100.6,8.6155426]
[1770544486091,8.40403551,2101.4,2100.6,8.6155426]
[1770544489593,0.00443174,2101.4,2100.6,8.6155426]
[1770544489796,8.40403551,2101.4,2100.6,8.6155426]
[1770544489993,0.00443174,2101.4,2100.6,8.6155426]
[1770544491395,73.04849532,2102.3,2100.8,8.6155426]
[1770544491396,8.39960377,2101.8,2100.8,8.6155426]
[1770544491796,8.39960377,2101.8,2100.9,8.6155426]
[1770544492201,8.39960377,2102.2,2100.9,8.6155426]
[1770544492497,8.39960377,2102.2,2100.9,8.61997434]
[1770544492498,8.4036877,2102.2,2100.9,8.61997434]
[1770544492702,0.00408393,2102.2,2101.0,11.69041418]
[1770544492897,0.00408393,2102.2,2101.4,8.6155426]
[1770544493398,8.4036877,2102.2,2101.4,8.92231511]
[1770544494196,0.00408393,2102.2,2101.4,8.92231511]
[1770544494397,8.39960377,2102.7,2101.5,8.6155426]
[1770544495394,8.40473571,2102.7,2101.5,8.6155426]
[1770544497203,8.39960377,2102.5,2101.4,8.6155426]
[1770544497703,8.40473571,2102.7,2101.5,8.6155426]
[1770544500310,8.64275571,2102.7,2101.5,8.6155426]
[1770544500506,8.63765377,2102.4,2101.1,8.6155426]
[1770544500916,8.39960377,2102.2,2100.9,8.61997434]
[1770544503120,8.63767377,2102.2,2100.9,8.61997434]
[1770544503718,8.39960377,2102.2,2100.9,8.61997434]
[1770544504020,8.39960377,2102.5,2101.1,8.6155426]
[1770544504218,8.39960377,2102.5,2101.2,8.6155426]
[1770544504418,8.39960377,2102.5,2101.3,8.6155426]
[1770544505714,8.40473571,2102.7,2101.5,8.6155426]
[1770544506519,8.40473571,2102.7,2101.6,8.290835]
[1770544508723,8.40473571,2102.7,2101.7,8.290835]
[1770544508921,8.40473571,2102.7,2101.8,8.290835]
[1770544511223,0.00513194,2102.7,2101.8,8.290835]
[1770544512118,7.84987716,2103.4,2102.0,8.290835]
[1770544512527,7.84987716,2103.4,2102.1,8.290835]
[1770544513120,7.85531416,2103.4,2102.1,8.290835]
[1770544515229,0.005437,2103.4,2102.4,8.58439963]
[1770544515530,0.005437,2103.4,2102.5,8.58439963]
[1770544516030,0.005437,2103.4,2102.6,8.58439963]
[1770544516231,7.98173316,2103.4,2102.6,8.58439963]
[1770544516928,0.005437,2103.4,2102.6,8.58439963]
[1770544518421,7.97629616,2104.0,2102.8,8.58439963]
[1770544518627,7.97629616,2104.0,2102.9,8.58439963]
[1770544519433,7.9810523,2104.0,2102.9,8.58439963]
[1770544523134,0.00475614,2104.0,2102.9,11.42107121]
[1770544523346,0.00475614,2104.0,2103.0,8.58439963]
[1770544523347,7.9810523,2104.0,2103.0,8.58439963]
[1770544525244,7.9810523,2104.0,2102.8,8.52157408]
[1770544527340,8.2189223,2104.0,2102.6,37.22457408]
[1770544527732,8.2189223,2104.0,2102.6,8.52157408]
[1770544528239,8.44782209,2103.6,2102.6,8.52157408]
[1770544528945,8.44782209,2103.6,2102.4,8.52727211]
[1770544530046,8.68577209,2103.3,2102.4,0.00569803]
[1770544530247,8.68577209,2103.3,2101.8,10.23439692]
[1770544530248,8.44782209,2103.0,2101.8,8.52157408]
[1770544531140,8.44782209,2103.0,2101.8,8.52633292]
[1770544531651,8.68580209,2103.0,2101.8,0.00475884]
[1770544531838,8.68580209,2103.0,2101.8,8.52633292]
[1770544532845,8.44782209,2102.7,2101.8,0.00475884]
[1770544533946,8.44782209,2102.7,2101.8,8.52633292]
[1770544535846,8.12417117,2103.0,2101.8,8.52633292]
[1770544536148,41.92817044,2103.3,2102.2,7.70278572]
[1770544536149,8.12417117,2103.3,2102.2,7.70278572]
[1770544537240,8.12417117,2103.3,2102.3,7.70278572]
[1770544540846,8.12417117,2103.7,2102.5,7.70278572]
[1770544541142,8.12417117,2103.7,2102.7,7.70278572]
[1770544542347,8.12417117,2103.7,2102.3,7.70278572]
[1770544543446,8.36208117,2103.7,2102.3,7.70278572]
[1770544543641,8.12417117,2103.5,2102.0,31.68967158]
[1770544543847,8.36210117,2103.5,2102.1,7.70278572]
[1770544544751,8.12417117,2103.5,2102.3,7.70278572]
[1770544547744,8.12417117,2103.8,2102.7,7.70278572]
[1770544551653,8.12417117,2103.8,2102.5,7.70278572]
[1770544552339,8.12417117,2103.7,2102.5,7.70278572]
[1770544554755,8.12417117,2103.6,2102.5,7.70278572]
[1770544555653,8.12417117,2103.6,2102.4,7.70278572]
[1770544555857,8.12417117,2103.5,2102.4,7.70278572]
[1770544556753,8.12417117,2103.5,2102.4,10.53955525]
[1770544556954,8.12417117,2103.5,2102.5,7.70278572]
[1770544557555,8.12417117,2103.5,2102.4,7.70278572]
[1770544559556,8.12417117,2103.5,2102.5,7.70278572]
[1770544562160,8.12417117,2103.4,2102.5,7.70278572]
[1770544562656,8.12417117,2103.4,2102.3,10.54418325]
[1770544562860,8.12417117,2103.4,2102.4,7.70278572]
[1770544563162,8.12417117,2103.3,2102.4,7.70278572]
[1770544564162,8.12417117,2103.3,2102.5,7.70278572]
[1770544564661,8.12417117,2103.4,2102.7,7.70278572]
[1770544565659,8.12417117,2103.4,2102.8,7.89886687]
[1770544567059,10.99158821,2103.8,2103.0,7.89886687]
[1770544567253,8.17659144,2103.7,2103.1,7.89886687]
[1770544567861,8.17659144,2103.7,2103.0,2.84139753]
[1770544568060,8.17659144,2103.6,2102.8,2.84139753]
[1770544568265,8.17659144,2103.6,2102.8,10.7402644]
[1770544568952,8.17659144,2103.6,2102.9,7.89886687]
[1770544571263,10.99634435,2104.0,2103.2,7.89886687]
[1770544571764,8.17659144,2103.9,2103.2,7.89886687]
[1770544571965,0.00475614,2104.0,2103.2,7.89886687]
[1770544572156,0.00475614,2104.0,2103.3,7.89886687]
[1770544572466,8.18134758,2104.0,2103.3,7.90417912]
[1770544574858,8.12146025,2104.0,2103.4,7.87021934]
[1770544576064,8.11670411,2104.2,2103.4,7.87021934]
[1770544577263,8.12223312,2104.2,2103.4,7.87021934]
[1770544581874,8.12223312,2104.2,2103.3,0.00531225]
[1770544583070,8.12223312,2104.2,2103.3,7.87553159]
[1770544583973,8.12223312,2104.2,2103.4,7.87021934]
[1770544584470,8.12223312,2104.2,2103.5,7.87021934]
[1770544596675,8.12223312,2104.2,2103.6,7.76890991]
[1770544598481,9.29813242,2104.2,2103.5,7.76890991]
[1770544599475,8.36773193,2104.4,2103.9,7.76890991]
[1770544600172,2.81819546,2104.6,2103.9,7.76890991]
[1770544600375,8.36773193,2104.6,2104.2,7.76890991]
[1770544600572,8.37196071,2104.6,2104.2,7.76890991]
[1770544600974,8.37196071,2104.6,2104.1,10.6081365]
[1770544601279,0.00422878,2104.6,2104.2,7.76890991]
[1770544601781,8.37196071,2104.6,2104.2,7.76890991]
[1770544602868,8.36773193,2104.8,2104.3,7.76890991]
[1770544603577,8.36773193,2104.9,2104.3,7.76890991]
[1770544603778,8.37333688,2104.9,2104.3,7.76890991]
[1770544604380,8.37333688,2104.9,2104.1,2.83922659]
[1770544604676,8.37333688,2104.9,2104.1,10.6081365]
[1770544605981,8.37333688,2104.9,2104.0,2.83922659]
[1770544606480,8.37333688,2104.9,2104.0,10.6081365]
[1770544606885,8.37333688,2104.9,2103.9,2.83922659]
[1770544607179,8.37333688,2104.9,2103.9,10.6081365]
[1770544607981,8.37333688,2104.9,2104.0,7.76890991]
[1770544611486,8.36773193,2104.7,2103.8,2.83922659]
[1770544611684,8.36773193,2104.7,2103.7,10.6081365]
[1770544612386,8.36773193,2104.7,2103.8,7.76890991]
[1770544612991,8.36773193,2104.3,2103.6,7.76890991]
[1770544614294,8.36773193,2104.3,2103.4,7.76890991]
[1770544615090,8.36773193,2104.3,2103.5,7.76890991]
[1770544618793,8.36773193,2104.3,2103.4,10.61170052]
[1770544618990,8.36773193,2104.4,2103.5,7.76890991]
[1770544621902,8.36773193,2104.4,2103.4,2.84283338]
[1770544622107,8.36773193,2104.1,2103.3,0.00531225]
[1770544624802,11.2025644,2104.1,2103.3,0.00531225]
[1770544624999,8.36773193,2104.0,2103.3,0.00531225]
[1770544627404,8.36773193,2104.0,2103.1,7.935678]
[1770544628403,8.36773193,2104.0,2103.1,7.93964001]
[1770544629009,8.36773193,2104.0,2103.1,0.00396201]
[1770544629306,11.20169128,2104.0,2103.1,0.00396201]
[1770544629506,8.10133519,2103.9,2102.9,7.935678]
[1770544630602,8.10133519,2103.9,2102.9,7.93901266]
[1770544635610,7.85221135,2103.7,2102.7,8.14462325]
[1770544635800,8.09011135,2103.7,2102.7,8.14462325]
[1770544636306,7.85221135,2103.6,2102.7,8.14462325]
[1770544636711,7.85221135,2103.6,2102.7,8.14897104]
[1770544637109,7.85221135,2103.6,2102.7,0.00434779]
[1770544637406,7.85221135,2103.6,2102.5,8.14462325]
[1770544637805,7.85221135,2103.5,2102.5,8.14462325]
[1770544638408,7.85221135,2103.5,2102.5,8.14907325]
[1770544638807,8.09015135,2103.4,2102.5,0.00445]
[1770544639013,7.85221135,2103.3,2102.5,0.00445]
[1770544639817,7.85221135,2103.2,2102.3,8.14462325]
[1770544640813,7.85221135,2103.2,2102.3,8.14863723]
[1770544641705,7.85221135,2103.0,2102.0,8.14462325]
[1770544642815,7.85221135,2103.0,2102.0,8.14710307]
[1770544643008,7.85221135,2102.9,2102.0,8.14710307]
[1770544649109,8.09021135,2102.9,2102.0,0.00247982]
[1770544649310,7.85221135,2102.8,2101.8,8.14462325]
[1770544649712,7.85221135,2102.8,2101.6,8.14462325]
[1770544651210,8.09022135,2102.8,2101.6,8.14462325]
[1770544653011,7.85221135,2102.6,2101.6,8.14462325]
[1770544653212,7.85221135,2102.6,2101.3,8.14462325]
[1770544653514,8.09024135,2102.6,2101.3,8.14462325]
[1770544655115,7.85221135,2102.6,2101.3,8.14462325]
[1770544655316,7.85221135,2102.7,2101.4,8.14462325]
[1770544656316,8.09023135,2102.7,2101.4,8.14462325]
[1770544662336,8.09023135,2102.7,2101.5,8.17109986]
[1770544662733,7.85221135,2102.7,2101.5,8.17109986]
[1770544662937,7.85221135,2102.7,2101.6,8.17109986]
[1770544665334,7.85221135,2102.7,2101.7,8.17109986]
[1770544666334,8.26831971,2102.6,2101.7,8.17109986]
[1770544666540,8.26831971,2102.3,2101.7,8.17109986]
[1770544669036,11.10183422,2102.5,2101.7,8.17109986]
[1770544669340,8.26831971,2102.5,2101.7,8.17109986]
[1770544670236,8.26831971,2102.5,2101.8,8.17109986]
[1770544671242,8.26831971,2102.4,2101.8,8.17109986]
[1770544674541,11.10183422,2102.8,2102.1,8.17109986]
[1770544676445,8.26831971,2102.7,2102.1,8.17109986]
[1770544677439,2.83351451,2102.9,2102.1,8.17109986]
[1770544677640,8.26831971,2102.9,2102.1,2.83821369]
[1770544677839,8.26831971,2102.9,2102.1,11.00931355]
[1770544678044,8.26831971,2102.9,2102.2,8.17109986]
[1770544678639,8.26831971,2102.9,2102.1,8.17109986]
[1770544678840,8.26831971,2102.3,2101.6,2.85067377]
[1770544679039,8.26831971,2102.3,2101.6,8.17109986]
[1770544681047,8.26831971,2102.3,2101.5,8.17109986]
[1770544701263,2.83636094,2102.4,2101.5,8.17109986]
[1770544701458,8.46936362,2102.4,2101.8,8.39252141]
[1770544702960,8.46936362,2102.5,2101.8,8.39252141]
[1770544705063,8.46936362,2102.5,2101.9,8.39252141]
[1770544709059,8.46936362,2102.4,2101.9,8.39252141]
[1770544709364,9.6472603,2102.4,2101.9,8.39252141]
[1770544711569,8.46936362,2102.4,2101.9,8.39252141]
[1770544714470,1.17789668,2102.6,2101.9,8.39252141]
[1770544714666,8.46936362,2102.6,2101.9,8.39252141]
[1770544714869,9.6472603,2102.6,2101.9,8.39252141]
[1770544717370,8.46936362,2102.6,2101.9,8.39252141]
[1770544718276,8.10596144,2102.3,2101.9,8.39252141]
[1770544718576,8.10596144,2102.3,2101.8,7.93118937]
[1770544718778,8.10596144,2102.3,2101.9,7.93118937]
[1770544721378,8.10596144,2102.3,2101.8,12.20742973]
[1770544721681,8.10596144,2102.3,2101.9,7.93118937]
[1770544724282,8.10596144,2102.3,2101.8,12.20742973]
[1770544724475,8.10596144,2102.3,2101.9,7.93118937]
[1770544727584,8.10596144,2102.3,2101.7,12.20742973]
[1770544727879,8.10596144,2102.1,2101.7,12.20742973]
[1770544728181,8.10596144,2102.1,2101.8,7.93118937]
[1770544729282,8.10596144,2102.3,2101.8,7.93118937]
[1770544731087,8.10596144,2102.3,2101.8,12.20742973]
[1770544732194,8.10596144,2102.3,2101.8,7.93118937]
[1770544733789,8.10596144,2102.3,2101.9,7.93118937]
[1770544734488,10.94232238,2102.5,2101.9,7.93118937]
[1770544735484,8.10596144,2102.4,2101.9,7.93118937]
[1770544737089,8.10596144,2102.8,2102.2,7.93118937]
[1770544738783,8.10596144,2102.6,2102.2,10.78378955]
[1770544739187,8.10596144,2102.6,2102.3,7.93118937]
[1770544739392,8.10596144,2102.8,2102.3,7.93118937]
[1770544739890,8.10596144,2102.9,2102.3,7.93118937]
[1770544742691,9.28385812,2102.9,2102.3,7.93118937]
[1770544743492,8.10596144,2102.9,2102.3,7.93118937]
[1770544747883,9.28352735,2102.9,2102.0,2.85088327]
[1770544748290,9.28352735,2102.9,2102.0,11.30994115]
[1770544748589,9.28352735,2102.9,2102.1,8.45905788]
[1770544748783,9.28352735,2102.9,2102.0,2.85088327]
[1770544748990,9.28352735,2102.9,2102.0,11.30994115]
[1770544749194,9.28352735,2102.9,2102.1,8.45905788]
[1770544749390,8.10596144,2102.9,2102.1,8.45905788]
[1770544754400,42.54541422,2103.0,2102.0,2.85088327]
[1770544754401,7.9351487,2103.2,2102.5,8.35098659]
[1770544754589,7.9351487,2103.2,2102.6,8.35098659]
[1770544754993,7.94084781,2103.4,2102.7,8.35098659]
[1770544755395,0.00569911,2103.4,2102.7,8.35098659]
[1770544756398,0.00569911,2103.4,2102.7,11.20186986]
[1770544756599,7.9351487,2103.7,2102.9,8.35098659]
[1770544757498,0.00429407,2103.7,2102.9,8.35441193]
[1770544757699,0.00429407,2103.7,2103.0,8.35098659]
[1770544758100,7.93944277,2103.7,2103.0,8.35098659]
[1770544760505,0.00429407,2103.7,2103.0,8.35098659]
[1770544760703,7.93944277,2103.7,2103.0,8.35098659]
[1770544762406,0.00429407,2103.7,2103.0,8.35098659]
[1770544763004,7.93944277,2103.7,2103.0,8.35098659]
[1770544765607,0.00429407,2103.7,2103.0,8.35098659]
[1770544765808,0.00429407,2103.7,2103.0,11.20186986]
[1770544766209,0.00429407,2103.7,2103.1,8.35098659]
[1770544766409,7.9351487,2104.1,2103.3,8.35098659]
[1770544767303,7.94104216,2104.1,2103.3,8.35098659]
[1770544768807,7.9351487,2103.8,2102.9,2.85430861]
[1770544769109,0.00589346,2104.1,2102.5,8.35098659]
[1770544769110,7.9351487,2103.5,2102.5,8.35098659]
[1770544770013,7.9351487,2103.5,2102.5,8.35436221]
[1770544772110,1.17756591,2103.6,2102.5,0.00337562]
[1770544772111,7.9351487,2103.2,2102.5,0.00337562]
[1770544772609,1.17756591,2103.3,2102.6,8.35098659]
[1770544772814,7.9351487,2103.6,2102.6,8.35098659]
[1770544775915,0.00589346,2104.1,2102.9,7.77652424]
[1770544776118,0.00589346,2104.1,2103.3,7.77652424]
[1770544776317,0.00589346,2104.1,2103.4,7.77652424]
[1770544776519,0.00589346,2104.1,2103.4,13.86522237]
[1770544776819,0.00589346,2104.1,2103.5,7.77652424]
[1770544777415,8.1486205,2104.6,2103.5,7.77652424]
[1770544778421,8.15304201,2104.6,2103.5,7.77652424]
[1770544782717,8.15304201,2104.6,2103.6,7.77652424]
[1770544784627,8.15304201,2104.6,2103.4,7.77652424]
[1770544786924,8.39084201,2104.6,2103.2,10.62740751]
[1770544787126,8.39084201,2104.6,2103.2,7.77652424]
[1770544787420,8.1486205,2104.5,2103.2,7.77652424]
[1770544792828,50.69604606,2104.5,2103.2,7.77652424]
[1770544793028,8.3864405,2104.4,2103.2,7.77652424]
[1770544793931,8.3864905,2104.1,2102.9,7.77652424]
[1770544796231,8.1486205,2103.6,2102.5,7.77989986]
[1770544796421,8.1486205,2103.4,2102.5,0.00337562]
[1770544796624,8.1486205,2103.1,2102.1,7.77652424]
[1770544797331,8.1486205,2102.9,2101.7,7.77652424]
[1770544797527,8.1486205,2102.6,2101.3,7.77652424]